bitfinex/quotes_SOLUSD_20250326
["timestamp","ask_amount","ask_price","bid_price","bid_amount"]
[1743004912873,0.063,139.44,139.37,0.03]
[1743004914199,100.7,139.43,139.37,0.03]
[1743004914500,87.24,139.42,139.37,0.03]
[1743004914792,7.173,139.41,139.37,0.03]
[1743004915011,80.7,139.4,139.37,0.03]
[1743004916000,80.7,139.39,139.37,0.03]
[1743004916304,80.7,139.38,139.37,0.03]
[1743004916478,25.1057,139.41,139.37,0.03]
[1743004916875,0.14216157,139.4,139.37,0.03]
[1743004918505,7.31576157,139.4,139.37,0.03]
[1743004920720,20.0,139.39,139.37,0.03]
[1743004921018,6.54,139.38,139.37,0.03]
[1743004921194,20.0,139.39,139.37,0.03]
[1743004921389,26.54,139.39,139.37,0.03]
[1743004922922,1.6806,139.44,139.37,0.03]
[1743004923100,6.54,139.43,139.37,0.03]
[1743004923490,6.54,139.42,139.37,0.03]
[1743004924593,87.8731,139.41,139.37,0.03]
[1743004925017,80.7,139.4,139.37,0.03]
[1743004925816,80.7,139.39,139.37,0.03]
[1743004926199,80.84216157,139.38,139.37,0.03]
[1743004926395,20.14216157,139.38,139.37,0.03]
[1743004926816,27.31676157,139.38,139.37,0.03]
[1743004928218,20.0,139.38,139.37,0.03]
[1743004928420,27.1746,139.38,139.37,0.03]
[1743004929304,33.7146,139.38,139.37,0.03]
[1743004930248,33.85676157,139.38,139.37,0.03]
[1743004930741,26.54,139.38,139.37,0.03]
[1743004931644,6.54,139.38,139.37,0.03]
[1743004931807,6.54,139.39,139.37,0.03]
[1743004932726,6.54,139.39,139.37,1.5446]
[1743004933125,6.54,139.43,139.37,1.5446]
[1743004938244,87.24,139.43,139.37,0.03]
[1743004938943,80.84216157,139.42,139.37,0.03]
[1743004939237,20.0,139.39,139.37,0.03]
[1743004939431,6.54,139.38,139.37,0.03]
[1743004942839,13.85676157,139.38,139.37,0.03]
[1743004943028,32.50641043,139.38,139.37,0.03]
[1743004943431,32.54641043,139.38,139.37,0.03]
[1743004944042,18.79181043,139.37,139.36,0.03]
[1743004944253,0.14216157,139.33,139.31,2.3233498]
[1743004944550,13.95986157,139.32,139.31,2.3233498]
[1743004946127,6.78216157,139.32,139.31,2.3233498]
[1743004947047,20.0,139.34,139.31,2.3233498]
[1743004947238,6.68,139.32,139.31,2.3233498]
[1743004947636,80.7,139.36,139.31,9.5015498]
[1743004947838,87.38,139.35,139.31,9.5015498]
[1743004949647,87.38,139.35,139.31,2.3233498]
[1743004949952,87.38,139.35,139.31,9.5014498]
[1743004950527,87.38,139.35,139.34,37.55480412]
[1743004950750,0.14216157,139.38,139.34,37.55480412]
[1743004950751,82.8,139.37,139.34,37.55480412]
[1743004950953,82.8,139.37,139.35,7.1761]
[1743004950954,6.66,139.36,139.35,7.1761]
[1743004951131,6.66,139.36,139.35,44.73090412]
[1743004951732,0.14216157,139.41,139.35,44.73090412]
[1743004951733,82.8,139.4,139.35,44.73090412]
[1743004952050,82.8,139.39,139.37,37.55480412]
[1743004952269,82.8,139.39,139.36,37.55480412]
[1743004953058,82.8,139.39,139.38,37.55480412]
[1743004953232,6.66,139.4,139.38,37.55480412]
[1743004953755,6.66,139.4,139.37,44.72990412]
[1743004955254,82.8,139.42,139.39,37.55480412]
[1743004955759,82.8,139.42,139.4,37.55480412]
[1743004956254,0.063,139.43,139.4,37.55480412]
[1743004956833,0.063,139.43,139.39,37.55480412]
[1743004957654,0.063,139.43,139.4,37.55480412]
[1743004958742,0.063,139.43,139.39,37.55480412]
[1743004959556,20.0,139.41,139.36,37.58480412]
[1743004959757,82.8,139.4,139.37,37.55480412]
[1743004960559,82.8,139.4,139.38,7.1746]
[1743004960736,82.8,139.4,139.39,37.55480412]
[1743004960936,82.8,139.42,139.39,37.55480412]
[1743004961157,82.8,139.42,139.4,37.55480412]
[1743004961351,82.8,139.42,139.39,37.55480412]
[1743004964035,82.8,139.42,139.38,37.55480412]
[1743004964439,82.8,139.42,139.36,0.17216157]
[1743004964440,82.8,139.42,139.39,37.55480412]
[1743004964959,82.8,139.42,139.39,23.45358413]
[1743004965767,82.8,139.42,139.36,0.17216157]
[1743004965940,82.8,139.42,139.39,23.45358413]
[1743004967259,82.8,139.42,139.38,23.45358413]
[1743004967941,82.8,139.42,139.39,23.45358413]
[1743004968137,82.8,139.42,139.38,23.45358413]
[1743004968947,82.8,139.42,139.39,23.45358413]
[1743004971243,82.8,139.42,139.36,0.17216157]
[1743004971449,0.063,139.43,139.4,23.45358413]
[1743004971956,0.063,139.43,139.41,23.45358413]
[1743004972144,0.063,139.43,139.4,23.45358413]
[1743004972760,0.063,139.43,139.42,23.45358413]
[1743004975369,0.063,139.43,139.42,42.24539456]
[1743004975563,0.063,139.43,139.42,43.78209456]
[1743004977445,0.063,139.44,139.43,18.933972]
[1743004977656,0.063,139.47,139.43,65.84114026]
[1743004977861,0.063,139.47,139.46,42.10323299]
[1743004979452,0.063,139.47,139.44,23.45358413]
[1743004980066,23.45358413,139.46,139.43,81.8]
[1743004980268,23.45358413,139.45,139.4,29.52598413]
[1743004980458,23.45358413,139.45,139.4,23.45358413]
[1743004980662,104.75358413,139.45,139.4,23.45358413]
[1743004981376,23.45358413,139.44,139.39,23.45358413]
[1743004984871,104.75358413,139.45,139.4,23.45358413]
[1743004985072,81.3,139.44,139.4,23.45358413]
[1743004985569,104.75358413,139.44,139.39,23.45358413]
[1743004985765,104.75358413,139.43,139.38,23.48358413]
[1743004985956,6.56,139.42,139.39,23.45358413]
[1743004986155,87.86,139.42,139.39,23.45358413]
[1743004986356,87.86,139.42,139.38,0.03]
[1743004986762,87.86,139.42,139.39,23.45358413]
[1743004987662,87.86,139.42,139.4,23.45358413]
[1743004987857,81.3,139.42,139.41,23.45358413]
[1743004988363,81.3,139.42,139.4,23.45358413]
[1743004989855,81.3,139.42,139.41,23.45358413]
[1743004990268,81.3,139.42,139.4,23.45358413]
[1743004990982,6.56,139.43,139.4,23.45358413]
[1743004991357,6.56,139.43,139.39,23.45358413]
[1743004991561,23.45358413,139.42,139.38,0.03]
[1743004991981,23.45358413,139.4,139.38,0.03]
[1743004992575,104.75358413,139.41,139.38,0.03]
[1743004993783,23.45358413,139.39,139.38,0.03]
[1743004995375,30.7698457,139.39,139.38,0.03]
[1743004995776,23.5957457,139.39,139.38,0.03]
[1743004997476,23.45358413,139.4,139.38,0.03]
[1743004997880,20.0,139.39,139.38,0.03]
[1743004998406,23.45358413,139.39,139.38,0.03]
[1743004998608,43.5957457,139.39,139.38,0.03]
[1743004999071,62.24539456,139.39,139.38,0.03]
[1743004999468,69.41949456,139.39,139.38,0.03]
[1743004999694,81.27,139.37,139.36,0.03]
[1743004999896,48.82539456,139.37,139.36,0.03]
[1743005000075,50.47279456,139.37,139.36,0.03]
[1743005001062,50.47279456,139.37,139.31,2.3233498]
[1743005001063,20.0,139.34,139.31,2.3233498]
[1743005001284,104.8957457,139.33,139.31,2.3233498]
[1743005001593,88.02216157,139.32,139.31,2.3233498]
[1743005001767,111.4757457,139.32,139.31,2.3233498]
[1743005001961,87.88,139.32,139.31,2.3233498]
[1743005002174,81.3,139.33,139.31,32.95513393]
[1743005002373,81.3,139.33,139.32,23.45358413]
[1743005003183,6.6,139.35,139.32,23.45358413]
[1743005003378,6.6,139.35,139.34,23.45358413]
[1743005003580,81.3,139.36,139.35,7.1761]
[1743005003777,81.3,139.36,139.35,30.62968413]
[1743005004605,81.3,139.36,139.35,7.1761]
[1743005005485,81.3,139.36,139.35,30.62968413]
[1743005005928,81.3,139.36,139.35,7.1761]
[1743005006205,81.3,139.36,139.35,30.62968413]
[1743005007601,81.3,139.36,139.32,7.1777]
[1743005007803,81.3,139.36,139.35,21.95358413]
[1743005007977,81.3,139.36,139.32,7.1777]
[1743005008305,81.3,139.36,139.34,23.45358413]
[1743005008496,81.3,139.36,139.35,0.03]
[1743005012519,80.3,139.36,139.35,0.03]
[1743005012999,80.3,139.36,139.35,23.48358413]
[1743005013396,80.3,139.39,139.35,23.48358413]
[1743005013595,0.20516157,139.44,139.39,7.1741]
[1743005013596,80.3,139.43,139.39,7.1741]
[1743005013796,86.92,139.42,139.39,30.62768413]
[1743005013997,80.3,139.42,139.39,30.62768413]
[1743005014212,80.3,139.42,139.41,23.45358413]
[1743005014724,6.62,139.43,139.41,23.45358413]
[1743005014901,6.62,139.43,139.42,23.45358413]
[1743005015098,6.62,139.43,139.41,23.45358413]
[1743005015998,6.62,139.43,139.4,23.45358413]
[1743005017224,30.07358413,139.43,139.38,23.45358413]
[1743005017421,103.75358413,139.42,139.36,25.00858413]
[1743005017623,103.75358413,139.42,139.37,23.45358413]
[1743005018441,80.3,139.42,139.38,23.45358413]
[1743005019207,86.9,139.42,139.39,23.45358413]
[1743005019406,86.9,139.42,139.38,23.45358413]
[1743005020828,86.9,139.42,139.39,7.1741]
[1743005022531,86.9,139.42,139.39,30.62768413]
[1743005023631,86.9,139.42,139.39,7.1741]
[1743005024627,86.9,139.42,139.36,1.555]
[1743005024628,110.35358413,139.42,139.36,1.555]
[1743005024842,110.35358413,139.42,139.37,23.45358413]
[1743005025218,86.9,139.42,139.38,23.45358413]
[1743005026531,86.9,139.42,139.39,7.1741]
[1743005026838,86.9,139.42,139.4,23.45358413]
[1743005027638,80.363,139.44,139.41,23.45358413]
[1743005027843,6.58,139.43,139.42,23.45358413]
[1743005028343,6.58,139.43,139.39,7.1741]
[1743005028344,6.58,139.43,139.41,23.45358413]
[1743005028721,0.14216157,139.39,139.35,0.03]
[1743005028922,23.45358413,139.37,139.35,0.03]
[1743005029129,86.92,139.38,139.35,0.03]
[1743005029344,23.45358413,139.36,139.35,0.03]
[1743005030442,23.5957457,139.36,139.35,0.03]
[1743005030636,30.7713457,139.36,139.35,0.03]
[1743005033750,7.31776157,139.36,139.35,0.03]
[1743005033940,0.14216157,139.34,139.31,2.3233498]
[1743005034148,111.32358413,139.33,139.31,2.3233498]
[1743005034947,118.50098413,139.33,139.31,2.3233498]
[1743005035153,95.0474,139.33,139.31,2.3233498]
[1743005035334,6.6,139.32,139.31,2.3233498]
[1743005037844,6.6,139.32,139.31,32.95513393]
[1743005038154,6.6,139.33,139.31,32.95513393]
[1743005038452,6.6,139.33,139.31,25.77693393]
[1743005039452,6.6,139.33,139.31,32.95513393]
[1743005040350,6.6,139.33,139.31,9.5015498]
[1743005040746,82.2,139.32,139.31,9.5015498]
[1743005041453,82.2,139.32,139.31,32.95513393]
[1743005042548,82.2,139.32,139.31,9.5015498]
[1743005042933,82.2,139.32,139.31,32.95513393]
[1743005044652,82.2,139.32,139.31,2.3233498]
[1743005046056,82.2,139.32,139.31,32.95513393]
[1743005047747,6.6,139.33,139.31,32.95513393]
[1743005047952,82.2,139.37,139.32,23.45358413]
[1743005048153,88.78,139.37,139.36,23.45358413]
[1743005048354,82.2,139.39,139.36,23.45358413]
[1743005048554,82.2,139.39,139.38,23.45358413]
[1743005049165,82.2,139.39,139.32,0.14216157]
[1743005049369,82.2,139.39,139.37,23.45358413]
[1743005049566,82.2,139.39,139.38,23.45358413]
[1743005049767,82.2,139.39,139.38,30.62818413]
[1743005050083,82.2,139.39,139.38,7.1746]
[1743005050667,82.2,139.39,139.33,7.1772]
[1743005050873,82.2,139.39,139.35,23.45358413]
[1743005051786,82.2,139.39,139.33,7.1772]
[1743005051966,82.2,139.39,139.35,7.1761]
[1743005052164,105.65358413,139.38,139.34,7.1764]
[1743005052569,23.45358413,139.37,139.33,7.1769]
[1743005052884,6.58,139.36,139.33,7.1769]
[1743005053090,88.78,139.36,139.33,7.1769]
[1743005053590,88.78,139.36,139.33,30.63048413]
[1743005054990,88.78,139.36,139.34,23.45358413]
[1743005055391,88.78,139.36,139.33,7.1769]
[1743005055593,88.78,139.36,139.35,23.45358413]
[1743005056194,82.2,139.39,139.35,30.62968413]
[1743005056387,82.2,139.39,139.37,23.45358413]
[1743005056587,82.2,139.39,139.38,23.45358413]
[1743005057495,82.2,139.39,139.37,23.45358413]
[1743005058001,82.2,139.39,139.38,7.1746]
[1743005058670,20.0,139.37,139.35,23.45358413]
[1743005058879,105.65358413,139.37,139.31,8.4967498]
[1743005059179,82.2,139.36,139.32,23.45358413]
[1743005059493,88.78,139.36,139.32,23.45358413]
[1743005059870,88.78,139.36,139.33,23.45358413]
[1743005060201,107.3223,139.32,139.27,0.03]
[1743005060381,82.2,139.32,139.27,23.48358413]
[1743005060581,82.2,139.32,139.27,0.03]
[1743005061477,82.2,139.32,139.27,30.66378413]
[1743005061678,82.2,139.32,139.29,23.45358413]
[1743005062079,82.2,139.32,139.29,30.63238413]
[1743005062298,82.2,139.32,139.3,23.45358413]
[1743005062500,82.2,139.35,139.31,23.45358413]
[1743005062798,88.78,139.37,139.32,23.45358413]
[1743005063806,82.2,139.36,139.32,23.45358413]
[1743005064182,82.2,139.36,139.33,30.63078413]
[1743005064399,82.2,139.36,139.33,7.1772]
[1743005064801,105.65358413,139.36,139.3,42.10323299]
[1743005065308,105.65358413,139.35,139.29,30.63278413]
[1743005065479,82.2,139.35,139.3,23.45358413]
[1743005065684,82.2,139.35,139.32,23.45358413]
[1743005065886,82.2,139.35,139.33,23.45358413]
[1743005066203,82.2,139.35,139.34,7.1766]
[1743005066586,82.2,139.35,139.34,30.63018413]
[1743005067106,82.2,139.35,139.34,7.1766]
[1743005067308,82.2,139.38,139.34,30.63018413]
[1743005067485,82.2,139.38,139.35,23.45358413]
[1743005067989,82.2,139.38,139.34,7.1766]
[1743005068188,82.2,139.38,139.34,30.63018413]
[1743005068413,82.2,139.38,139.35,23.45358413]
[1743005068601,82.2,139.38,139.34,7.1766]
[1743005068797,82.2,139.38,139.34,30.63018413]
[1743005069101,23.45358413,139.37,139.34,7.1766]
[1743005070320,23.45358413,139.37,139.33,7.2072]
[1743005071211,105.65358413,139.38,139.33,7.2072]
[1743005071409,23.45358413,139.37,139.33,0.03]
[1743005071789,0.56,139.33,139.32,7.1777]
[1743005073028,0.56,139.33,139.31,7.1782]
[1743005073602,0.56,139.33,139.31,30.63178413]
[1743005079510,0.56,139.33,139.31,7.1782]
[1743005080102,82.56,139.33,139.31,7.1782]
[1743005080300,106.01358413,139.33,139.29,7.1792]
[1743005080521,82.0,139.32,139.29,7.1792]
[1743005081413,24.01358413,139.33,139.28,7.1797]
[1743005081620,24.01358413,139.33,139.31,0.03]
[1743005082814,105.5957457,139.32,139.31,0.03]
[1743005084621,82.14216157,139.32,139.31,0.03]
[1743005087802,0.14216157,139.32,139.31,0.03]
[1743005091824,6.56,139.32,139.31,0.03]
[1743005093916,27.12,139.33,139.31,0.03]
[1743005094638,0.56,139.33,139.31,23.48358413]
[1743005095236,0.56,139.33,139.32,7.1777]
[1743005095838,0.56,139.33,139.32,30.63128413]
[1743005101138,0.56,139.33,139.32,22.20001137]
[1743005103627,0.56,139.33,139.31,0.03]
[1743005103839,15.58231137,139.33,139.31,0.03]
[1743005104042,82.0,139.32,139.31,0.03]
[1743005105038,82.0,139.32,139.31,15.05231137]
[1743005105644,0.56,139.33,139.31,15.05231137]
[1743005105851,0.56,139.33,139.32,15.02231137]
[1743005106045,0.56,139.33,139.32,22.20001137]
[1743005106761,0.0001,139.33,139.32,40.84966023]
[1743005106931,0.0001,139.33,139.32,49.2913932]
[1743005107540,0.063,139.37,139.35,20.0]
[1743005107747,0.0001,139.37,139.36,65.57773754]
[1743005108449,0.0001,139.37,139.36,42.1136932]
[1743005110152,0.0001,139.37,139.36,65.57773754]
[1743005110352,0.0001,139.37,139.36,42.1136932]
[1743005110765,0.0001,139.37,139.36,23.46404434]
[1743005111665,0.0001,139.37,139.36,42.1136932]
[1743005111966,0.0001,139.37,139.36,23.46404434]
[1743005113072,0.0001,139.37,139.36,42.1136932]
[1743005114568,0.0001,139.37,139.36,42.25585477]
[1743005117167,0.0001,139.37,139.36,42.1136932]
[1743005117367,0.0001,139.37,139.34,6.278]
[1743005117566,0.0001,139.37,139.33,42.1136932]
[1743005117954,0.0001,139.37,139.34,23.46404434]
[1743005118362,0.0001,139.37,139.35,23.46404434]
[1743005118554,0.0001,139.37,139.36,42.1136932]
[1743005118949,0.0001,139.37,139.36,47.98696378]
[1743005119247,0.0001,139.37,139.36,42.1136932]
[1743005119654,0.0001,139.37,139.36,65.71989911]
[1743005119857,0.0001,139.37,139.36,72.28339911]
[1743005120271,0.063,139.43,139.37,18.79181043]
[1743005120474,0.063,139.43,139.42,23.46404434]
[1743005120856,0.0001,139.43,139.42,42.1136932]
[1743005121166,0.0001,139.44,139.43,18.64964886]
[1743005121344,0.0001,139.44,139.43,23.46404434]
[1743005121546,0.0001,139.44,139.43,42.1136932]
[1743005123869,0.0001,139.44,139.43,48.4517932]
[1743005124075,0.0001,139.44,139.43,48.59395477]
[1743005124253,0.0001,139.44,139.43,72.05799911]
[1743005124872,0.0001,139.44,139.43,72.34232225]
[1743005125080,0.0001,139.47,139.45,0.14216157]
[1743005125254,0.0001,139.47,139.46,43.46404434]
[1743005125666,0.0001,139.5,139.47,18.933972]
[1743005125873,0.0001,139.5,139.49,23.46404434]
[1743005126880,0.0001,139.51,139.49,42.1136932]
[1743005127062,0.0001,139.51,139.5,18.79181043]
[1743005127261,0.0001,139.51,139.5,42.25585477]
[1743005128583,0.0001,139.51,139.5,65.71989911]
[1743005128775,0.063,139.53,139.5,65.71989911]
[1743005128981,0.063,139.53,139.52,42.1136932]
[1743005132501,0.0001,139.53,139.52,42.25585477]
[1743005132700,0.0001,139.53,139.52,42.54017791]
[1743005132902,0.0001,139.53,139.52,42.39801634]
[1743005133194,0.0001,139.53,139.52,42.54017791]
[1743005134197,0.0001,139.53,139.52,48.14853158]
[1743005134774,0.0001,139.53,139.52,42.54017791]
[1743005134974,0.0001,139.53,139.52,125.14017791]
[1743005135691,0.0001,139.53,139.52,124.85585477]
[1743005136098,0.0001,139.53,139.52,125.14017791]
[1743005137268,0.0001,139.56,139.54,0.14216157]
[1743005137473,0.0001,139.56,139.55,23.46404434]
[1743005139693,0.0001,139.57,139.55,42.1136932]
[1743005140006,0.0001,139.58,139.57,19.07613357]
[1743005140190,0.0001,139.61,139.58,18.79181043]
[1743005140377,0.0001,139.61,139.6,42.1136932]
[1743005142699,0.0001,139.61,139.59,23.46404434]
[1743005143002,0.0001,139.61,139.58,23.46404434]
[1743005143191,0.0001,139.61,139.59,23.46404434]
[1743005143593,0.0001,139.61,139.6,23.46404434]
[1743005144701,0.0001,139.61,139.6,42.1136932]
[1743005145982,0.0001,139.61,139.6,23.46404434]
[1743005149406,0.0001,139.61,139.59,23.46404434]
[1743005149899,0.0001,139.61,139.58,42.1136932]
[1743005150603,0.0001,139.61,139.59,23.46404434]
[1743005151399,0.0001,139.61,139.58,18.64964886]
[1743005151400,0.0001,139.61,139.58,23.46404434]
[1743005151586,0.0001,139.61,139.57,23.46404434]
[1743005151779,0.0001,139.61,139.59,23.46404434]
[1743005151985,0.0001,139.61,139.6,23.46404434]
[1743005152499,0.0001,139.61,139.6,42.1136932]
[1743005153688,0.0001,139.61,139.6,42.54017791]
[1743005155197,0.063,139.65,139.64,38.64964886]
[1743005155401,0.063,139.65,139.64,62.1136932]
[1743005158203,0.063,139.65,139.64,86.00422225]
[1743005158589,0.063,139.66,139.65,0.14216157]
[1743005158789,0.063,139.66,139.65,65.57773754]
[1743005159197,0.063,139.66,139.65,42.1136932]
[1743005161210,0.063,139.66,139.62,18.79181043]
[1743005161400,0.063,139.66,139.65,23.46404434]
[1743005163010,0.063,139.66,139.65,42.1136932]
[1743005163888,0.063,139.66,139.65,23.46404434]
[1743005164089,0.063,139.66,139.64,23.46404434]
[1743005164316,0.063,139.66,139.61,18.79181043]
[1743005164503,0.063,139.66,139.63,23.46404434]
[1743005165227,0.063,139.66,139.64,23.46404434]
[1743005168237,25.14224434,139.66,139.61,42.1136932]
[1743005168522,107.14224434,139.66,139.61,42.1136932]
[1743005169198,23.46404434,139.65,139.61,42.1136932]
[1743005169821,107.14224434,139.66,139.61,42.1136932]
[1743005171330,82.0,139.65,139.61,23.46404434]
[1743005172618,82.0,139.65,139.62,23.46404434]
[1743005173014,82.0,139.65,139.61,23.46404434]
[1743005173642,82.0,139.65,139.61,18.64964886]
[1743005173830,1.6782,139.66,139.63,23.46404434]
[1743005173831,0.063,139.66,139.63,23.46404434]
[1743005174131,0.063,139.66,139.65,23.46404434]
[1743005174832,0.063,139.66,139.64,23.46404434]
[1743005176539,0.063,139.66,139.63,23.46404434]
[1743005176748,0.063,139.66,139.63,43.46404434]
[1743005177114,23.52704434,139.66,139.61,23.46404434]
[1743005177337,105.52704434,139.66,139.61,23.46404434]
[1743005178037,105.46404434,139.65,139.6,42.1766932]
[1743005179118,82.0,139.65,139.62,23.46404434]
[1743005179638,82.0,139.65,139.61,23.46404434]
[1743005179831,82.0,139.65,139.6,18.71264886]
[1743005180239,82.0,139.65,139.61,23.46404434]
[1743005181234,82.0,139.65,139.62,42.1136932]
[1743005181617,0.063,139.66,139.63,23.46404434]
[1743005181817,0.063,139.66,139.64,23.46404434]
[1743005182031,0.063,139.66,139.65,23.46404434]
[1743005182519,0.063,139.66,139.64,23.46404434]
[1743005182725,0.063,139.66,139.62,62.1136932]
[1743005184443,23.46404434,139.62,139.6,0.063]
[1743005185547,82.0,139.63,139.6,0.063]
[1743005187732,82.0,139.63,139.6,23.52704434]
[1743005192237,82.0,139.63,139.6,0.063]
[1743005192848,105.46404434,139.63,139.6,0.063]
[1743005193533,23.46404434,139.62,139.6,0.063]
[1743005193953,105.46404434,139.63,139.6,0.063]
[1743005194328,82.0,139.62,139.6,0.063]
[1743005195953,105.46404434,139.62,139.6,0.063]
[1743005196332,82.0,139.62,139.6,0.063]
[1743005196759,105.46404434,139.61,139.6,0.063]
[1743005196963,23.46404434,139.61,139.6,0.063]
[1743005197137,30.00404434,139.61,139.6,0.063]
[1743005201172,25.00414434,139.62,139.6,0.063]
[1743005201460,23.46404434,139.61,139.6,0.063]
[1743005203259,30.76900591,139.61,139.6,0.063]
[1743005207752,23.46404434,139.53,139.51,0.063]
[1743005208150,23.46404434,139.54,139.51,0.063]
[1743005208352,105.40104434,139.55,139.51,0.063]
[1743005209072,23.46404434,139.54,139.51,0.063]
[1743005209452,105.40104434,139.53,139.51,0.063]
[1743005209648,105.40104434,139.52,139.51,0.063]
[1743005211273,81.937,139.52,139.51,0.063]
[1743005216662,111.94104434,139.54,139.51,0.063]
[1743005217880,88.477,139.54,139.51,0.063]
[1743005218387,111.94104434,139.54,139.51,0.063]
[1743005219363,23.46404434,139.53,139.51,0.063]
[1743005219981,105.40104434,139.52,139.51,0.063]
[1743005221863,23.46404434,139.52,139.51,0.063]
[1743005222087,23.60620591,139.52,139.51,0.063]
[1743005222472,54.23765025,139.52,139.51,0.063]
[1743005223289,30.77360591,139.52,139.51,0.063]
[1743005223483,75.77765025,139.52,139.51,0.063]
[1743005223682,77.40445025,139.52,139.51,0.063]
[1743005223971,0.14216157,139.47,139.46,0.063]
[1743005224298,30.14620591,139.47,139.46,0.063]
[1743005225067,23.60620591,139.47,139.46,0.063]
[1743005225268,31.80600591,139.47,139.46,0.063]
[1743005225901,38.97600591,139.47,139.46,0.063]
[1743005226783,38.97600591,139.47,139.38,0.063]
[1743005226784,79.16565477,139.47,139.38,0.063]
[1743005226989,23.46404434,139.41,139.38,0.063]
[1743005227168,30.00404434,139.41,139.38,0.063]
[1743005227370,6.54,139.41,139.38,0.063]
[1743005227576,82.0,139.4,139.38,0.063]
[1743005231178,105.46404434,139.39,139.38,0.063]
[1743005234124,82.0,139.39,139.38,0.063]
[1743005234290,23.46404434,139.4,139.38,0.063]
[1743005234489,30.00404434,139.41,139.38,0.063]
[1743005236117,6.54,139.41,139.38,23.52704434]
[1743005236413,6.54,139.41,139.38,0.063]
[1743005236617,30.00404434,139.41,139.38,0.063]
[1743005236808,23.46404434,139.4,139.38,0.063]
[1743005237122,23.46404434,139.39,139.38,0.063]
[1743005237827,23.60620591,139.39,139.38,0.063]
[1743005238187,63.79585477,139.39,139.38,0.063]
[1743005239388,45.14620591,139.39,139.38,0.063]
[1743005241901,81.874,139.36,139.32,23.46404434]
[1743005242106,81.874,139.36,139.34,23.46404434]
[1743005242902,76.5,139.39,139.35,31.39364434]
[1743005243094,76.5,139.39,139.38,23.46404434]
[1743005243515,75.4252,139.42,139.38,23.46404434]
[1743005243710,75.4252,139.42,139.41,23.46404434]
[1743005244117,75.4252,139.42,139.38,18.64964886]
[1743005244296,75.4252,139.42,139.41,23.46404434]
[1743005244492,75.4252,139.42,139.35,7.9296]
[1743005244802,75.4252,139.42,139.38,23.46404434]
[1743005245006,75.4252,139.41,139.38,23.46404434]
[1743005245520,75.4252,139.41,139.4,23.46404434]
[1743005247814,75.4252,139.45,139.41,8.2217]
[1743005248017,75.4252,139.45,139.43,23.46404434]
[1743005248321,75.4252,139.45,139.42,23.46404434]
[1743005250790,81.9652,139.45,139.42,23.46404434]
[1743005251227,105.42924434,139.45,139.4,23.46404434]
[1743005251730,81.9652,139.45,139.41,23.46404434]
[1743005251901,75.4252,139.44,139.41,23.46404434]
[1743005253116,75.4252,139.44,139.42,23.46404434]
[1743005254493,75.4252,139.44,139.41,23.46404434]
[1743005257407,6.54,139.45,139.43,23.46404434]
[1743005257822,0.03,139.46,139.43,23.46404434]
[1743005258635,23.63620591,139.46,139.38,18.71264886]
[1743005258825,23.46404434,139.43,139.38,23.52704434]
[1743005259020,81.9652,139.42,139.38,23.52704434]
[1743005259429,81.9652,139.42,139.38,0.063]
[1743005259634,23.46404434,139.41,139.38,0.063]
[1743005261258,23.46404434,139.39,139.38,0.063]
[1743005261924,23.60620591,139.39,139.38,0.063]
[1743005264828,30.78030591,139.39,139.38,0.063]
[1743005265241,207.76995477,139.39,139.38,0.063]
[1743005265829,81.937,139.37,139.34,0.063]
[1743005266036,23.46404434,139.35,139.34,0.063]
[1743005270261,45.14620591,139.35,139.34,0.063]